fUST/lending_fUST_20251119
["ID","MTS","AMOUNT","RATE_DAILY","PERIOD"]
[394421404,1763556639886,-495.42104687,0.00013698,2]
[394421406,1763556639895,-1000.0,0.00013698,2]
[394421408,1763556639905,-1000.0,0.00013698,2]
[394421410,1763556639914,-1000.0,0.00013698,2]
[394421412,1763556639924,-1000.0,0.00013698,2]
[394421414,1763556639933,-1000.0,0.00013698,2]
[394421416,1763556639943,-1000.0,0.00013698,2]
[394421418,1763556639951,-1000.0,0.00013698,2]
[394421420,1763556639960,-1008.43444966,0.00013698,2]
[394421422,1763556639969,-500.0,0.00013698,2]
[394421424,1763556639979,-500.0,0.00013698,2]
[394421426,1763556639989,-500.0,0.00013698,2]
[394421428,1763556640000,-500.0,0.00013698,2]
[394421432,1763556640009,-500.0,0.00013698,2]
[394421434,1763556640018,-572.14017571,0.00013698,2]
[394421436,1763556640027,-151.000082,0.00013699,2]
[394421438,1763556640037,-151.0,0.00013699,2]
[394421440,1763556640047,-151.0,0.00013699,2]
[394421442,1763556640056,-151.0,0.00013699,2]
[394421444,1763556640067,-151.0,0.000137,2]
[394421446,1763556640077,-1959.0,0.00013713,2]
[394421448,1763556640087,-1959.0,0.00013741,2]
[394421450,1763556640096,-1959.0,0.00013768,2]
[394421452,1763556640105,-500.0,0.00013772,2]
[394421454,1763556640114,-1959.0,0.00013795,2]
[394421456,1763556640123,-151.0,0.000138,2]
[394421458,1763556640132,-151.0,0.000138,2]
[394421461,1763556640141,-1959.0,0.00013823,2]
[394421462,1763556640153,-1977.20164112,0.0001385,2]
[394421465,1763556640162,-151.0,0.000139,2]
[394421467,1763556640172,-151.0,0.000139,2]
[394421469,1763556640182,-151.0,0.00014,2]
[394421471,1763556640191,-500.0,0.00014046,2]
[394421472,1763556640200,-161.9324311,0.00014078,2]
[394421475,1763556640210,-168.73089288,0.00014094,2]
[394421477,1763556640220,-674.92357153,0.00014094,2]
[394421479,1763556640229,-1518.57803594,0.00014094,2]
[394421480,1763556640238,-2699.69428612,0.00014094,2]
[394421483,1763556640247,-153.25445825,0.00014094,2]
[394421484,1763556640257,-613.01783301,0.00014094,2]
[394421487,1763556640266,-1379.29012426,0.00014094,2]
[394421489,1763556640276,-151.0,0.000141,2]
[394421491,1763556640285,-151.0,0.000141,2]
[394421493,1763556640295,-151.0,0.000142,2]
[394421495,1763556640304,-151.0,0.000142,2]
[394421497,1763556640313,-151.0,0.000143,2]
[394421499,1763556640323,-151.0,0.000143,2]
[394421500,1763556640332,-389.1547044,0.00014319,2]
[394421503,1763556640341,-700.47846791,0.00014319,2]
[394421505,1763556640350,-180.80370328,0.00014319,2]
[394421506,1763556640359,-723.21481311,0.00014319,2]
[394421509,1763556640368,-1627.23332949,0.00014319,2]
[394421510,1763556640377,-500.0,0.0001432,2]
[394421513,1763556640387,-500.0,0.00014331,2]
[394421515,1763556640396,-263.70606165,0.00014331,2]
[394421516,1763556640405,-500.0,0.00014331,2]
[394421518,1763556640415,-500.0,0.00014331,2]
[394421520,1763556640424,-500.0,0.00014331,2]
[394421523,1763556640434,-500.0,0.00014331,2]
[394421525,1763556640443,-1680.0,0.00014363,2]
[394421526,1763556640452,-420.0,0.00014363,2]
[394421529,1763556640462,-420.0,0.00014363,2]
[394421531,1763556640471,-300.0,0.00014363,2]
[394421532,1763556640480,-1000.0,0.00014365,2]
[394421534,1763556640491,-1000.0,0.00014365,2]
[394421536,1763556640500,-1000.0,0.00014365,2]
[394421538,1763556640509,-1000.0,0.00014365,2]
[394421541,1763556640518,-1000.0,0.00014365,2]
[394421543,1763556640527,-1000.0,0.00014365,2]
[394421544,1763556640537,-1000.0,0.00014365,2]
[394421546,1763556640546,-1000.0,0.00014365,2]
[394421549,1763556640556,-163.15648338,0.00014365,2]
[394421551,1763556640565,-1146.27147923,0.00014365,2]
[394421553,1763556640575,-6933.91976297,0.00014365,2]
[394421555,1763556640584,-186.09,0.00014386,2]
[394421557,1763556640593,-186.09,0.00014386,2]
[394421559,1763556640603,-186.09,0.00014386,2]
[394421561,1763556640612,-1680.0,0.00014408,2]
[394421563,1763556640621,-500.0,0.00014413,2]
[394421565,1763556640630,-518.39835129,0.00014413,2]
[394421567,1763556640639,-7190.4747942,0.0001442,2]
[394421569,1763556640648,-500.0,0.0001445,2]
[394421571,1763556640657,-500.0,0.0001445,2]
[394421573,1763556640667,-162.57104211,0.00014475,2]
[394421575,1763556640677,-500.0,0.00014478,2]
[394421576,1763556640689,-503.65604025,0.00014478,2]
[394421579,1763556640698,-500.0,0.00014478,2]
[394421581,1763556640708,-500.0,0.00014478,2]
[394421583,1763556640717,-392.58132975,0.00014478,2]
[394421584,1763556640727,-622.16386914,0.00014478,2]
[394421586,1763556640736,-500.0,0.00014478,2]
[394421588,1763556640745,-151.0,0.000145,2]
[394421590,1763556640754,-501.23325128,0.00014512,2]
[394421592,1763556640763,-200.0,0.0001452,2]
[394421594,1763556640773,-42328.5036765,0.00014521,2]
[394421596,1763556640782,-151.0,0.00014521,2]
[394421598,1763556640791,-500.0,0.00014556,2]
[394421600,1763556640800,-505.73670855,0.00014556,2]
[394421602,1763556640809,-500.0,0.00014594,2]
[394421603,1763556640819,-151.0,0.000146,2]
[394421605,1763556640828,-500.94,0.0001462,2]
[394421607,1763556640839,-160.34,0.0001462,2]
[394421609,1763556640848,-160.34,0.0001462,2]
[394421611,1763556640858,-160.34,0.0001462,2]
[394421622,1763556640945,-160.34,0.0001462,2]
[394421624,1763556640954,-160.36,0.0001462,2]
[394421625,1763556640963,-500.0,0.00014653,2]
[394421627,1763556640972,-500.0,0.00014653,2]
[394421629,1763556640982,-500.0,0.00014653,2]
[394421632,1763556640995,-151.0,0.000147,2]
[394421633,1763556641004,-500.93977236,0.0001472,2]
[394421635,1763556641014,-500.0,0.00014744,2]
[394421637,1763556641023,-500.0,0.00014744,2]
[394421639,1763556641033,-501.34505857,0.00014744,2]
[394421641,1763556641042,-6171.27548613,0.00014845,2]
[394421643,1763556641052,-1325.161093,0.00014852,2]
[394421645,1763556641061,-2332.0232998,0.00014854,2]
[394421647,1763556641072,-500.0,0.00014868,2]
[394421648,1763556641081,-1000.0,0.00014879,2]
[394421650,1763556641090,-448.06713993,0.00014879,2]
[394421652,1763556641099,-1000.0,0.00014879,2]
[394421654,1763556641108,-1000.0,0.00014879,2]
[394421656,1763556641117,-151.0,0.000149,2]
[394421658,1763556641126,-214.41000241,0.00014909,2]
[394421660,1763556641135,-2251.83879319,0.00014939,2]
[394421662,1763556641144,-6171.27548613,0.00014959,2]
[394421664,1763556641153,-1013.20103779,0.00014961,2]
[394421665,1763556641163,-232.97,0.00014979,2]
[394421667,1763556641173,-581.70931609,0.00014998,2]
[394421668,1763556641182,-1000.0,0.00014998,2]
[394421669,1763556641191,-261.865298,0.00014999,2]
[394421670,1763556641200,-261.865298,0.00014999,2]
[394421671,1763556641208,-261.865298,0.00014999,2]
[394421672,1763556641218,-261.865297,0.00014999,2]
[394421673,1763556641227,-151.0,0.00015,2]
[394421674,1763556641236,-164.22872862,0.00015026,2]
[394421675,1763556641245,-1000.0,0.00015026,2]
[394421676,1763556641254,-1000.0,0.00015026,2]
[394421677,1763556641263,-1000.0,0.00015026,2]
[394421678,1763556641272,-726.8322933,0.00015073,2]
[394421679,1763556641281,-1635.37265993,0.00015073,2]
[394421680,1763556641290,-162.21475814,0.00015073,2]
[394421681,1763556641300,-6171.27548613,0.00015073,2]
[394421682,1763556641309,-1000.0,0.00015104,2]
[394421683,1763556641318,-500.0,0.00015142,2]
[394421684,1763556641327,-13548.71109563,0.00015181,2]
[394421685,1763556641336,-6171.27548613,0.00015187,2]
[394421686,1763556641345,-500.0,0.00015189,2]
[394421687,1763556641354,-500.0,0.00015189,2]
[394421688,1763556641363,-500.0,0.00015189,2]
[394421689,1763556641372,-500.0,0.00015189,2]
[394421690,1763556641382,-267.41789647,0.00015189,2]
[394421691,1763556641391,-500.0,0.00015189,2]
[394421692,1763556641401,-170.75559957,0.00015189,2]
[394421693,1763556641411,-158.55699744,0.00015189,2]
[394421694,1763556641422,-500.0,0.00015189,2]
[394421695,1763556641433,-500.0,0.00015189,2]
[394421696,1763556641442,-231.35448524,0.00015189,2]
[394421697,1763556641451,-382.90001677,0.00015189,2]
[394421698,1763556641460,-534.44770672,0.00015189,2]
[394421699,1763556641470,-500.0,0.00015189,2]
[394421700,1763556641479,-500.0,0.00015189,2]
[394421701,1763556641490,-500.0,0.00015189,2]
[394421702,1763556641499,-500.0,0.00015189,2]
[394421703,1763556641509,-500.0,0.00015189,2]
[394421704,1763556641518,-500.0,0.00015189,2]
[394421705,1763556641527,-500.0,0.00015189,2]
[394421706,1763556641536,-500.0,0.00015189,2]
[394421707,1763556641545,-500.0,0.00015189,2]
[394421708,1763556641555,-502.19973818,0.00015189,2]
[394421709,1763556641564,-500.0,0.00015189,2]
[394421710,1763556641574,-500.0,0.00015189,2]
[394421711,1763556641583,-500.0,0.00015189,2]
[394421712,1763556641595,-500.0,0.00015189,2]
[394421713,1763556641604,-500.0,0.00015189,2]
[394421714,1763556641614,-500.0,0.00015189,2]
[394421715,1763556641623,-780.08366749,0.00015201,2]
[394421716,1763556641633,-1000.0,0.00015201,2]
[394421717,1763556641643,-453.69846792,0.00015201,2]
[394421718,1763556641652,-632.23521911,0.00015209,2]
[394421719,1763556641661,-1000.0,0.00015292,2]
[394421720,1763556641671,-502.05566359,0.00015292,2]
[394421721,1763556641680,-151.0,0.000153,2]
[394421722,1763556641690,-6171.27548613,0.00015301,2]
[394421723,1763556641700,-160.0,0.00015381,2]
[394421724,1763556641709,-6171.27548613,0.00015414,2]
[394421725,1763556641719,-500.0,0.00015416,2]
[394421726,1763556641728,-1500.0,0.00015427,2]
[394421727,1763556641737,-725.52266136,0.00015427,2]
[394421728,1763556641746,-1500.0,0.00015427,2]
[394421729,1763556641755,-800.0,0.00015492,2]
[394421730,1763556641764,-800.0,0.00015498,2]
[394421731,1763556641777,-500.0,0.00015514,2]
[394421732,1763556641786,-800.0,0.00015516,2]
[394421733,1763556641795,-800.0,0.00015517,2]
[394421734,1763556641804,-800.0,0.00015523,2]
[394421735,1763556641813,-800.0,0.00015527,2]
[394421736,1763556641823,-6171.27548613,0.00015528,2]
[394421737,1763556641832,-940.78990971,0.00015546,2]
[394421738,1763556641841,-800.0,0.00015559,2]
[394421739,1763556641850,-800.0,0.00015565,2]
[394421740,1763556641860,-1500.0,0.00015574,2]
[394421741,1763556641869,-1500.0,0.00015574,2]
[394421742,1763556641878,-800.0,0.00015579,2]
[394421743,1763556641887,-800.0,0.00015583,2]
[394421744,1763556641896,-800.0,0.00015583,2]
[394421745,1763556641905,-800.0,0.00015589,2]
[394421746,1763556641915,-800.0,0.00015596,2]
[394421747,1763556641925,-800.0,0.00015602,2]
[394421748,1763556641934,-800.0,0.00015604,2]
[394421749,1763556641943,-800.0,0.00015605,2]
[394421750,1763556641953,-800.0,0.00015608,2]
[394421751,1763556641962,-800.0,0.00015611,2]
[394421752,1763556641971,-800.0,0.00015612,2]
[394421753,1763556641980,-800.0,0.00015613,2]
[394421754,1763556641993,-3148.888726,0.00015617,2]
[394421755,1763556642002,-800.0,0.00015622,2]
[394421756,1763556642011,-800.0,0.00015631,2]
[394421757,1763556642021,-800.0,0.00015632,2]
[394421758,1763556642032,-2904.42184404,0.00015634,2]
[394421759,1763556642041,-800.0,0.00015635,2]
[394421760,1763556642050,-240.14827,0.00015635,2]
[394421761,1763556642059,-800.0,0.00015638,2]
[394421762,1763556642070,-800.0,0.00015641,2]
[394421763,1763556642080,-6171.27548613,0.00015642,2]
[394421764,1763556642089,-1517.31851309,0.00015652,2]
[394421765,1763556642098,-685.88569322,0.00015658,2]
[394421766,1763556642107,-800.0,0.00015688,2]
[394421767,1763556642116,-500.0,0.0001569,2]
[394421768,1763556642126,-151.0,0.000157,2]
[394421769,1763556642135,-800.0,0.00015701,2]
[394421770,1763556642144,-800.0,0.00015702,2]
[394421771,1763556642154,-800.0,0.00015704,2]
[394421772,1763556642163,-800.0,0.00015707,2]
[394421773,1763556642173,-800.0,0.00015719,2]
[394421774,1763556642182,-800.0,0.00015729,2]
[394421775,1763556642191,-825.78165932,0.00015737,2]
[394421776,1763556642201,-1000.0,0.00015737,2]
[394421777,1763556642211,-1000.0,0.00015737,2]
[394421778,1763556642220,-1000.0,0.00015737,2]
[394421779,1763556642230,-1000.0,0.00015737,2]
[394421780,1763556642239,-505.49963257,0.00015737,2]
[394421781,1763556642250,-1000.0,0.00015737,2]
[394421782,1763556642268,-1000.0,0.00015737,2]
[394421783,1763556642279,-1000.0,0.00015737,2]
[394421784,1763556642290,-1000.0,0.00015737,2]
[394421785,1763556642300,-1000.0,0.00015737,2]
[394421786,1763556642309,-1000.0,0.00015737,2]
[394421787,1763556642319,-1000.0,0.00015737,2]
[394421788,1763556642328,-1000.0,0.00015737,2]
[394421789,1763556642339,-506.29595838,0.00015737,2]
[394421790,1763556642349,-1000.0,0.00015737,2]
[394421791,1763556642358,-1000.0,0.00015737,2]
[394421792,1763556642367,-1000.0,0.00015737,2]
[394421793,1763556642376,-1000.0,0.00015737,2]
[394421794,1763556642386,-1000.0,0.00015737,2]
[394421795,1763556642395,-505.34951589,0.00015737,2]
[394421796,1763556642404,-1500.0,0.00015749,2]
[394421797,1763556642414,-2351.0,0.0001575,2]
[394421798,1763556642424,-327.0,0.0001575,2]
[394421799,1763556642433,-587.0,0.0001575,2]
[394421800,1763556642444,-6171.27548613,0.00015756,2]
[394421801,1763556642453,-600.0,0.00015764,2]
[394421802,1763556642463,-1500.0,0.0001584,2]
[394421803,1763556642472,-2351.0,0.00015849,2]
[394421804,1763556642482,-6177.44676161,0.0001587,2]
[394421805,1763556642492,-260.0,0.00015929,2]
[394421806,1763556642502,-648.85903255,0.0001595,2]
[394421807,1763556642511,-500.0,0.00015964,2]
[394421808,1763556642520,-1023.82290866,0.00015975,2]
[394421809,1763556642530,-447.75950493,0.00015975,2]
[394421810,1763556642539,-151.0,0.00016,2]
[394421811,1763556642548,-509.51262256,0.00016062,2]
[394421812,1763556642558,-204.40404596,0.00016087,2]
[394421813,1763556642567,-2000.0,0.00016122,2]
[394421814,1763556642578,-151.0,0.00016155,2]
[394421815,1763556642588,-151.0,0.00016155,2]
[394421816,1763556642597,-500.0,0.00016238,2]
[394421817,1763556642607,-1500.0,0.00016285,2]
[394421818,1763556642616,-1500.0,0.00016285,2]
[394421819,1763556642626,-845.92527344,0.00016285,2]
[394421820,1763556642635,-1500.0,0.00016285,2]
[394421821,1763556642644,-1501.77337171,0.00016285,2]
[394421822,1763556642654,-1500.0,0.00016285,2]
[394421823,1763556642664,-1111.89646868,0.00016285,2]
[394421824,1763556642673,-1500.0,0.00016285,2]
[394421825,1763556642683,-1500.0,0.00016285,2]
[394421826,1763556642693,-1500.0,0.00016285,2]
[394421827,1763556642777,-1500.0,0.00016285,2]
[394421828,1763556642786,-1500.0,0.00016285,2]
[394421829,1763556642796,-510.77623363,0.00016285,2]
[394421830,1763556642806,-1500.0,0.00016285,2]
[394421831,1763556642815,-1500.0,0.00016285,2]
[394421832,1763556642825,-1500.0,0.00016285,2]
[394421833,1763556642834,-1500.0,0.00016285,2]
[394421834,1763556642843,-2000.0,0.00016297,2]
[394421835,1763556642852,-151.0,0.000163,2]
[394421836,1763556642862,-307.89170148,0.00016341,2]
[394421837,1763556642871,-100000.0,0.00016342,2]
[394421838,1763556642880,-1325.161093,0.00016405,2]
[394421839,1763556642889,-500.0,0.00016438,2]
[394421840,1763556642898,-500.0,0.00016438,2]
[394421841,1763556642908,-500.0,0.00016438,2]
[394421842,1763556642919,-500.0,0.00016438,2]
[394421843,1763556642929,-500.0,0.00016438,2]
[394421844,1763556642939,-500.0,0.00016438,2]
[394421845,1763556642948,-500.0,0.00016438,2]
[394421846,1763556642957,-500.0,0.00016438,2]
[394421847,1763556642966,-500.0,0.00016438,2]
[394421848,1763556642975,-500.0,0.00016438,2]
[394421849,1763556642984,-567.18232728,0.00016438,2]
[394421850,1763556642997,-500.0,0.00016438,2]
[394421851,1763556643007,-500.0,0.00016438,2]
[394421852,1763556643017,-500.0,0.00016438,2]
[394421853,1763556643027,-500.0,0.00016438,2]
[394421854,1763556643039,-500.0,0.00016438,2]
[394421855,1763556643050,-500.0,0.00016438,2]
[394421856,1763556643060,-500.0,0.00016438,2]
[394421857,1763556643073,-500.0,0.00016438,2]
[394421858,1763556643084,-500.0,0.00016438,2]
[394421859,1763556643094,-500.0,0.00016438,2]
[394421860,1763556643104,-500.0,0.00016438,2]
[394421861,1763556643115,-500.0,0.00016438,2]
[394421862,1763556643128,-500.0,0.00016438,2]
[394421863,1763556643138,-500.0,0.00016438,2]
[394421864,1763556643149,-500.0,0.00016438,2]
[394421865,1763556643159,-205.85929809,0.00016438,2]
[394421866,1763556643171,-500.0,0.00016438,2]
[394421867,1763556643181,-529.70398773,0.00016438,2]
[394421868,1763556643193,-500.0,0.00016438,2]
[394421869,1763556643203,-500.0,0.00016438,2]
[394421870,1763556643214,-500.0,0.00016438,2]
[394421871,1763556643224,-500.0,0.00016438,2]
[394421872,1763556643235,-500.0,0.00016438,2]
[394421873,1763556643245,-500.0,0.00016438,2]
[394421874,1763556643255,-500.0,0.00016438,2]
[394421875,1763556643265,-500.0,0.00016438,2]
[394421876,1763556643276,-500.0,0.00016438,2]
[394421877,1763556643288,-500.0,0.00016438,2]
[394421878,1763556643300,-500.0,0.00016438,2]
[394421879,1763556643312,-500.0,0.00016438,2]
[394421880,1763556643323,-500.0,0.00016438,2]
[394421881,1763556643334,-500.0,0.00016438,2]
[394421882,1763556643344,-500.0,0.00016438,2]
[394421883,1763556643354,-500.0,0.00016438,2]
[394421884,1763556643364,-500.0,0.00016438,2]
[394421885,1763556643374,-500.0,0.00016438,2]
[394421886,1763556643384,-500.0,0.00016438,2]
[394421887,1763556643394,-500.0,0.00016438,2]
[394421888,1763556643404,-500.0,0.00016438,2]
[394421889,1763556643414,-500.0,0.00016438,2]
[394421890,1763556643428,-500.0,0.00016438,2]
[394421891,1763556643439,-500.0,0.00016438,2]
[394421892,1763556643448,-500.0,0.00016438,2]
[394421893,1763556643458,-500.0,0.00016438,2]
[394421894,1763556643470,-500.0,0.00016438,2]
[394421895,1763556643480,-500.0,0.00016438,2]
[394421896,1763556643490,-500.0,0.00016438,2]
[394421897,1763556643500,-500.0,0.00016438,2]
[394421898,1763556643510,-500.0,0.00016438,2]
[394421899,1763556643519,-500.0,0.00016438,2]
[394421900,1763556643528,-500.0,0.00016438,2]
[394421901,1763556643538,-500.0,0.00016438,2]
[394421902,1763556643547,-500.0,0.00016438,2]
[394421903,1763556643557,-500.0,0.00016438,2]
[394421904,1763556643567,-500.0,0.00016438,2]
[394421905,1763556643577,-151.0,0.00016438,2]
[394421906,1763556643587,-151.0,0.00016438,2]
[394421907,1763556643597,-151.0,0.00016438,2]
[394421908,1763556643607,-151.0,0.00016438,2]
[394421909,1763556643617,-360.0,0.00016477,2]
[394421910,1763556643627,-500.0,0.00016512,2]
[394421911,1763556643638,-1000.0,0.00016605,5]
[394421912,1763556643648,-333.0,0.00016613,2]
[394421913,1763556643659,-333.0,0.00016613,2]
[394421914,1763556643672,-333.0,0.00016613,2]
[394421915,1763556643682,-333.0,0.00016613,2]
[394421916,1763556643692,-333.0,0.00016613,2]
[394421917,1763556643702,-333.0,0.00016613,2]
[394421918,1763556643712,-342.75331161,0.00016613,2]
[394421919,1763556643722,-333.0,0.00016613,2]
[394421920,1763556643731,-331.0,0.00016613,2]
[394421921,1763556643741,-174.0,0.00016613,2]
[394421922,1763556643751,-175.12851068,0.00016613,2]
[394421923,1763556643762,-166.0,0.00016613,2]
[394421924,1763556643772,-166.0,0.00016613,2]
[394421925,1763556643782,-218.70582509,0.00016613,2]
[394421926,1763556643793,-151.0,0.00016613,2]
[394421927,1763556643803,-162.169979,0.00016613,2]
[394421928,1763556643813,-10683.46074628,0.00016623,2]
[394421929,1763556643822,-2500.0,0.0001667,2]
[394421930,1763556643832,-424.80796022,0.00016745,7]
[394421931,1763556643841,-817.61618384,0.00016751,2]
[394421932,1763556643851,-322.39889838,0.00016779,2]
[394421933,1763556643862,-500.0,0.00016785,2]
[394421934,1763556643872,-2000.0,0.00016833,2]
[394421935,1763556643882,-164.16943938,0.00016833,2]
[394421936,1763556643891,-2000.0,0.00016833,2]
[394421937,1763556643902,-1014.91139396,0.00016833,2]
[394421938,1763556643912,-1843.68948455,0.00016833,2]
[394421939,1763556643924,-2000.0,0.00016833,2]
[394421940,1763556643934,-2000.0,0.00016833,2]
[394421941,1763556643943,-2000.0,0.00016833,2]
[394421942,1763556643953,-1508.93431054,0.00016833,2]
[394421943,1763556643963,-494.88981819,0.00016845,2]
[394421944,1763556643973,-247.11661295,0.00016909,2]
[394421945,1763556643983,-1458.47289041,0.0001691,2]
[394421946,1763556643998,-300.0,0.00016957,2]
[394421947,1763556644007,-300.0,0.00016957,2]
[394421948,1763556644018,-300.0,0.00016957,2]
[394421949,1763556644027,-300.0,0.00016957,2]
[394421950,1763556644039,-300.0,0.00016957,2]
[394421951,1763556644048,-300.0,0.00016957,2]
[394421952,1763556644058,-300.0,0.00016957,2]
[394421953,1763556644069,-300.0,0.00016957,2]
[394421954,1763556644079,-300.0,0.00016957,2]
[394421955,1763556644091,-300.0,0.00016957,2]
[394421956,1763556644101,-300.0,0.00016957,2]
[394421957,1763556644111,-300.0,0.00016957,2]
[394421958,1763556644121,-300.0,0.00016957,2]
[394421959,1763556644131,-300.0,0.00016957,2]
[394421960,1763556644141,-300.0,0.00016957,2]
[394421961,1763556644151,-45839.12519212,0.00017,2]
[394421962,1763556644162,-460.0,0.00017025,2]
[394421963,1763556644175,-500.0,0.00017059,2]
[394421964,1763556644185,-600.0,0.0001706,2]
[394421965,1763556644195,-197.20659404,0.0001706,2]
[394421966,1763556644205,-346.0,0.00017182,2]
[394421967,1763556644215,-3000.0,0.00017218,2]
[394421968,1763556644224,-2577.0,0.0001727,2]
[394421969,1763556644234,-823.0,0.0001727,2]
[394421970,1763556644243,-577.14083565,0.00017333,7]
[394421971,1763556644253,-500.0,0.00017333,2]
[394421972,1763556644264,-404.0,0.00017346,2]
[394421973,1763556644273,-2500.0,0.00017381,2]
[394421974,1763556644283,-2500.0,0.00017381,2]
[394421975,1763556644293,-2500.0,0.00017381,2]
[394421976,1763556644304,-2500.0,0.00017381,2]
[394421977,1763556644314,-677.64798293,0.00017381,2]
[394421978,1763556644323,-1839.63641365,0.00017416,2]
[394421979,1763556644333,-788.82637614,0.00017424,2]
[394421980,1763556644343,-3292.0,0.00017433,2]
[394421981,1763556644352,-2308.56334262,0.00017436,7]
[394421982,1763556644362,-806.0,0.000175,2]
[394421983,1763556644372,-522.0,0.00017514,2]
[394421984,1763556644381,-499.76378585,0.0001754,2]
[394421985,1763556644392,-560.0,0.00017573,2]
[394421986,1763556644402,-2123.96963575,0.000176,2]
[394421987,1763556644412,-500.0,0.00017607,2]
[394421988,1763556644424,-577.16532933,0.00017765,2]
[394421989,1763556644435,-1774.85934632,0.00017788,2]
[394421990,1763556644444,-579.73769907,0.00017801,2]
[394421991,1763556644454,-648.26030909,0.00017881,2]
[394421992,1763556644464,-13022.79762429,0.000179,2]
[394421993,1763556644473,-2946.86266528,0.00017929,2]
[394421994,1763556644483,-3000.0,0.00017929,2]
[394421995,1763556644493,-3000.0,0.00017929,2]
[394421996,1763556644574,-3000.0,0.00017929,2]
[394421997,1763556644584,-1325.161093,0.00017957,2]
[394421998,1763556644593,-658.51228253,0.00017975,7]
[394421999,1763556644602,-127749.04650148,0.00018,2]
[394422000,1763556644612,-20679.97318203,0.00018,2]
[394422001,1763556644622,-9687.27040259,0.00018,2]
[394422002,1763556644631,-29835.12559537,0.00018,2]
[394422003,1763556644643,-151.0,0.00018,2]
[394422004,1763556644653,-3267.19427064,0.00018079,2]
[394422005,1763556644664,-660.0,0.00018121,2]
[394422006,1763556644675,-3155.30550457,0.00018152,2]
[394422007,1763556644684,-556.81861845,0.00018448,7]
[394422008,1763556644695,-3500.0,0.00018477,2]
[394422009,1763556644705,-3500.0,0.00018477,2]
[394422010,1763556644715,-3500.0,0.00018477,2]
[394422011,1763556644725,-898.67523971,0.00018507,2]
[394422012,1763556644734,-31833.5886462,0.00018519,2]
[394422013,1763556644743,-2225.04719934,0.00018553,7]
[394422014,1763556644754,-760.0,0.00018669,2]
[394422015,1763556644763,-795.0,0.00018744,2]
[394422016,1763556644773,-795.0,0.00018763,2]
[394422017,1763556644782,-720.0,0.00018766,2]
[394422018,1763556644791,-1004.0,0.00018772,2]
[394422019,1763556644800,-795.0,0.00018808,2]
[394422020,1763556644810,-182.42504049,0.00018871,2]
[394422021,1763556644820,-795.0,0.00018897,2]
[394422022,1763556644829,-279.82322348,0.00018909,2]
[394422023,1763556644839,-795.0,0.00018934,2]
[394422024,1763556644849,-1152.0,0.00018938,2]
[394422025,1763556644858,-795.0,0.00019017,2]
[394422026,1763556644868,-4000.0,0.00019025,2]
[394422027,1763556644878,-4000.0,0.00019025,2]
[394422028,1763556644887,-4000.0,0.00019025,2]
[394422029,1763556644896,-795.0,0.00019117,2]
[394422030,1763556644905,-795.0,0.00019163,2]
[394422031,1763556644915,-795.0,0.00019167,2]
[394422032,1763556644926,-3094.0,0.00019177,2]
[394422033,1763556644935,-180.001427,0.00019178,2]
[394422034,1763556644945,-180.001427,0.00019178,2]
[394422035,1763556644955,-180.001427,0.00019178,2]
[394422036,1763556644964,-180.001427,0.00019178,2]
[394422037,1763556644974,-180.001427,0.00019178,2]
[394422038,1763556644984,-180.001427,0.00019178,2]